fUSD/lending_fUSD_20251221
["ID","MTS","AMOUNT","RATE_DAILY","PERIOD"]
[399436227,1766351440366,-1000.0,0.00014191,2]
[399436228,1766351440375,-803.77125516,0.00014191,2]
[399436229,1766351440384,-1000.0,0.00014191,2]
[399436230,1766351440393,-1000.0,0.00014191,2]
[399436231,1766351440402,-1000.0,0.00014191,2]
[399436232,1766351440412,-1000.0,0.00014191,2]
[399436233,1766351440421,-1000.0,0.00014191,2]
[399436234,1766351440431,-1795.59,0.00014191,2]
[399436235,1766351440441,-28256.00528838,0.00014231,2]
[399436236,1766351440450,-166.66,0.00014247,2]
[399436237,1766351440460,-200.0,0.00014249,2]
[399436238,1766351440469,-736.0,0.00014337,2]
[399436239,1766351440478,-1600.0,0.00014351,2]
[399436240,1766351440487,-166.66,0.00014384,2]
[399436241,1766351440496,-1795.59,0.00014465,2]
[399436242,1766351440507,-3292.0,0.00014484,2]
[399436243,1766351440517,-151.0,0.00014616,2]
[399436244,1766351440526,-151.0,0.00014642,2]
[399436245,1766351440536,-151.0,0.00014661,2]
[399436246,1766351440545,-151.0,0.0001467,2]
[399436247,1766351440554,-151.0,0.00014736,2]
[399436248,1766351440563,-158.72296276,0.00014739,2]
[399436249,1766351440572,-1500.0,0.00014739,2]
[399436250,1766351440582,-1500.0,0.00014739,2]
[399436251,1766351440592,-1500.0,0.00014739,2]
[399436252,1766351440602,-500.84654228,0.00014739,2]
[399436253,1766351440611,-1500.0,0.00014739,2]
[399436254,1766351440622,-1500.0,0.00014739,2]
[399436255,1766351440633,-597.40388542,0.00014739,2]
[399436256,1766351440643,-1500.0,0.00014739,2]
[399436257,1766351440653,-1503.75804982,0.00014739,2]
[399436258,1766351440663,-980.21424336,0.00014739,2]
[399436259,1766351440673,-1500.0,0.00014739,2]
[399436260,1766351440683,-858.60637341,0.00014739,2]
[399436261,1766351440692,-1500.0,0.00014739,2]
[399436262,1766351440702,-1500.0,0.00014739,2]
[399436263,1766351440711,-1500.0,0.00014739,2]
[399436264,1766351440720,-1500.0,0.00014739,2]
[399436265,1766351440729,-1500.0,0.00014739,2]
[399436266,1766351440744,-1500.0,0.00014739,2]
[399436267,1766351440759,-1500.0,0.00014739,2]
[399436268,1766351440768,-1500.0,0.00014739,2]
[399436269,1766351440778,-1795.59,0.00014739,2]
[399436270,1766351440787,-28256.00528838,0.00014898,2]
[399436271,1766351440796,-1795.59,0.00015013,2]
[399436272,1766351440806,-1832.75,0.00015019,2]
[399436273,1766351440815,-666.07222089,0.00015287,2]
[399436274,1766351440824,-2000.0,0.00015287,2]
[399436275,1766351440835,-2000.0,0.00015287,2]
[399436276,1766351440845,-2000.0,0.00015287,2]
[399436277,1766351440855,-158.38653664,0.00015287,2]
[399436278,1766351440865,-1500.98434959,0.00015287,2]
[399436279,1766351440874,-1071.82272799,0.00015287,2]
[399436280,1766351440884,-936.03619538,0.00015287,2]
[399436281,1766351440893,-889.58800714,0.00015287,2]
[399436282,1766351440903,-2000.0,0.00015287,2]
[399436283,1766351440912,-629.20788422,0.00015287,2]
[399436284,1766351440922,-2000.0,0.00015287,2]
[399436285,1766351440931,-458.37108423,0.00015287,2]
[399436286,1766351440940,-2000.0,0.00015287,2]
[399436287,1766351440950,-1004.443568,0.00015287,2]
[399436288,1766351440959,-1795.59,0.00015287,2]
[399436289,1766351440968,-500.0,0.00015427,2]
[399436290,1766351440977,-246.21231133,0.00015558,2]
[399436291,1766351440986,-1795.59,0.00015561,2]
[399436292,1766351440996,-28256.00528838,0.00015565,2]
[399436293,1766351441005,-1600.0,0.00015656,2]
[399436294,1766351441014,-1252.0,0.00015709,2]
[399436295,1766351441023,-2500.0,0.00015835,2]
[399436296,1766351441033,-2500.0,0.00015835,2]
[399436297,1766351441042,-2500.0,0.00015835,2]
[399436298,1766351441054,-2500.0,0.00015835,2]
[399436299,1766351441064,-2500.0,0.00015835,2]
[399436300,1766351441074,-2500.0,0.00015835,2]
[399436301,1766351441083,-4609.0,0.00015933,2]
[399436302,1766351441093,-1795.59,0.00016108,2]
[399436303,1766351441102,-28256.00528838,0.00016233,2]
[399436304,1766351441112,-782.41597288,0.00016338,2]
[399436305,1766351441121,-1795.59,0.00016382,2]
[399436306,1766351441131,-3000.0,0.00016383,2]
[399436307,1766351441140,-2351.34245587,0.00016383,2]
[399436308,1766351441149,-1503.160494,0.00016383,2]
[399436309,1766351441159,-3000.0,0.00016383,2]
[399436310,1766351441170,-3000.0,0.00016383,2]
[399436311,1766351441180,-624.62923411,0.00016383,2]
[399436312,1766351441189,-1101.62355976,0.00016437,5]
[399436313,1766351441199,-500.0,0.00016437,2]
[399436314,1766351441208,-1300.31424691,0.00016438,2]
[399436315,1766351441218,-1300.31424691,0.00016438,2]
[399436316,1766351441228,-1300.31424691,0.00016438,2]
[399436317,1766351441238,-1300.31424691,0.00016438,2]
[399436318,1766351441248,-1300.31424691,0.00016438,2]
[399436319,1766351441259,-1300.31424691,0.00016438,2]
[399436320,1766351441268,-1300.31424691,0.00016438,2]
[399436321,1766351441278,-1300.31424691,0.00016438,2]
[399436322,1766351441288,-1300.31424691,0.00016438,2]
[399436323,1766351441298,-1300.31424691,0.00016438,2]
[399436324,1766351441308,-1300.31424691,0.00016438,2]
[399436325,1766351441317,-1300.31424691,0.00016438,2]
[399436326,1766351441327,-1300.31424691,0.00016438,2]
[399436327,1766351441336,-1300.31424691,0.00016438,2]
[399436328,1766351441565,-1300.31424691,0.00016438,2]
[399436329,1766351441603,-1300.31424691,0.00016438,2]
[399436330,1766351441612,-1300.31424691,0.00016438,2]
[399436331,1766351441622,-1300.31424691,0.00016438,2]
[399436332,1766351441631,-1300.31424691,0.00016438,2]
[399436333,1766351441640,-1300.31424691,0.00016438,2]
[399436334,1766351441649,-1300.31424691,0.00016438,2]
[399436335,1766351441658,-1300.31424691,0.00016438,2]
[399436336,1766351441667,-1300.31424691,0.00016438,2]
[399436337,1766351441677,-1300.31424691,0.00016438,2]
[399436338,1766351441686,-1300.31424691,0.00016438,2]
[399436339,1766351441695,-1300.31424691,0.00016438,2]
[399436340,1766351441705,-1300.31424691,0.00016438,2]
[399436341,1766351441715,-1300.31424691,0.00016438,2]
[399436342,1766351441725,-1300.31424691,0.00016438,2]
[399436343,1766351441735,-1300.31424691,0.00016438,2]
[399436344,1766351441744,-1300.31424691,0.00016438,2]
[399436345,1766351441755,-1300.31424691,0.00016438,2]
[399436346,1766351441765,-1300.31424691,0.00016438,2]
[399436347,1766351441774,-1300.31424691,0.00016438,2]
[399436348,1766351441783,-1300.31424691,0.00016438,2]
[399436349,1766351441792,-1300.31424691,0.00016438,2]
[399436350,1766351441802,-1300.31424691,0.00016438,2]
[399436351,1766351441813,-1300.31424691,0.00016438,2]
[399436352,1766351441822,-1300.31424691,0.00016438,2]
[399436353,1766351441834,-1300.31424691,0.00016438,2]
[399436354,1766351441844,-1300.31424691,0.00016438,2]
[399436355,1766351441854,-1300.31424691,0.00016438,2]
[399436356,1766351441864,-1300.31424691,0.00016438,2]
[399436357,1766351441873,-1300.31424691,0.00016438,2]
[399436358,1766351441883,-1300.31424691,0.00016438,2]
[399436359,1766351441893,-1300.31424691,0.00016438,2]
[399436360,1766351441903,-1300.31424691,0.00016438,2]
[399436361,1766351441913,-1300.31424691,0.00016438,2]
[399436362,1766351441922,-1300.31424691,0.00016438,2]
[399436363,1766351441932,-1300.31424691,0.00016438,2]
[399436364,1766351441942,-1300.31424691,0.00016438,2]
[399436365,1766351441951,-2480.25863995,0.00016438,2]
[399436366,1766351441960,-2480.25863995,0.00016438,2]
[399436367,1766351441969,-2480.25863995,0.00016438,2]
[399436368,1766351441978,-2480.25863995,0.00016438,2]
[399436369,1766351441987,-2480.25863995,0.00016438,2]
[399436370,1766351441997,-2480.25863995,0.00016438,2]
[399436371,1766351442007,-2480.25863995,0.00016438,2]
[399436372,1766351442017,-2480.25863995,0.00016438,2]
[399436373,1766351442026,-2480.25863995,0.00016438,2]
[399436374,1766351442036,-2480.25863995,0.00016438,2]
[399436375,1766351442046,-2480.25863995,0.00016438,2]
[399436376,1766351442059,-2480.25863995,0.00016438,2]
[399436377,1766351442068,-2480.25863995,0.00016438,2]
[399436378,1766351442078,-2480.25863995,0.00016438,2]
[399436379,1766351442088,-2480.25863995,0.00016438,2]
[399436380,1766351442101,-2480.25863995,0.00016438,2]
[399436381,1766351442111,-2480.25863995,0.00016438,2]
[399436382,1766351442120,-2480.25863995,0.00016438,2]
[399436383,1766351442131,-2480.25863995,0.00016438,2]
[399436384,1766351442141,-2480.25863995,0.00016438,2]
[399436385,1766351442150,-2480.25863995,0.00016438,2]
[399436386,1766351442160,-2480.25863995,0.00016438,2]
[399436387,1766351442170,-2480.25863995,0.00016438,2]
[399436388,1766351442180,-2480.25863995,0.00016438,2]
[399436389,1766351442191,-2480.25863995,0.00016438,2]
[399436390,1766351442200,-2480.25863995,0.00016438,2]
[399436391,1766351442210,-2480.25863995,0.00016438,2]
[399436392,1766351442220,-2480.25863995,0.00016438,2]
[399436393,1766351442232,-2480.25863995,0.00016438,2]
[399436394,1766351442242,-2480.25863995,0.00016438,2]
[399436395,1766351442252,-2480.25863995,0.00016438,2]
[399436396,1766351442261,-2480.25863992,0.00016438,2]
[399436397,1766351442271,-2480.25863992,0.00016438,2]
[399436398,1766351442281,-2480.25863992,0.00016438,2]
[399436399,1766351442291,-2480.25863992,0.00016438,2]
[399436400,1766351442300,-2480.25863991,0.00016438,2]
[399436401,1766351442310,-500.0,0.00016438,2]
[399436402,1766351442319,-489.6,0.00016438,2]
[399436403,1766351442329,-500.0,0.00016473,2]
[399436404,1766351442338,-500.0,0.00016473,2]
[399436405,1766351442347,-500.0,0.00016473,2]
[399436406,1766351442356,-500.0,0.00016473,2]
[399436408,1766351442366,-500.0,0.00016473,2]
[399436410,1766351442375,-162.38378184,0.00016473,2]
[399436412,1766351442385,-500.0,0.00016473,2]
[399436413,1766351442395,-500.0,0.00016473,2]
[399436414,1766351442404,-500.0,0.00016473,2]
[399436415,1766351442415,-500.0,0.00016473,2]
[399436416,1766351442424,-500.0,0.00016473,2]
[399436417,1766351442434,-500.0,0.00016473,2]
[399436418,1766351442443,-334.60508476,0.00016473,2]
[399436419,1766351442452,-500.0,0.00016473,2]
[399436420,1766351442461,-518.86476464,0.00016473,2]
[399436421,1766351442471,-500.0,0.00016473,2]
[399436422,1766351442479,-500.0,0.00016473,2]
[399436423,1766351442489,-500.0,0.00016473,2]
[399436424,1766351442499,-500.0,0.00016473,2]
[399436425,1766351442510,-500.0,0.00016473,2]
[399436426,1766351442520,-500.0,0.00016473,2]
[399436427,1766351442530,-500.0,0.00016473,2]
[399436428,1766351442539,-500.0,0.00016473,2]
[399436429,1766351442548,-160.18740865,0.00016473,2]
[399436430,1766351442557,-150.17482874,0.00016473,2]
[399436431,1766351442567,-500.0,0.00016473,2]
[399436432,1766351442576,-500.0,0.00016473,2]
[399436433,1766351442586,-500.0,0.00016473,2]
[399436434,1766351442595,-156.55034948,0.00016473,2]
[399436435,1766351442605,-500.0,0.00016473,2]
[399436436,1766351442614,-160.18741035,0.00016473,2]
[399436437,1766351442626,-500.0,0.00016473,2]
[399436438,1766351442636,-160.18740865,0.00016473,2]
[399436439,1766351442645,-500.0,0.00016473,2]
[399436440,1766351442655,-500.0,0.00016473,2]
[399436441,1766351442664,-500.0,0.00016473,2]
[399436442,1766351442673,-160.18740865,0.00016473,2]
[399436443,1766351442682,-160.18818998,0.00016473,2]
[399436444,1766351442691,-500.0,0.00016473,2]
[399436445,1766351442700,-500.0,0.00016473,2]
[399436446,1766351442712,-500.0,0.00016473,2]
[399436447,1766351442722,-555.97636192,0.00016473,2]
[399436448,1766351442733,-500.0,0.00016473,2]
[399436449,1766351442744,-500.0,0.00016473,2]
[399436450,1766351442754,-500.0,0.00016473,2]
[399436451,1766351442763,-509.1899532,0.00016473,2]
[399436452,1766351442772,-500.0,0.00016473,2]
[399436453,1766351442782,-499.68742722,0.00016473,2]
[399436454,1766351442791,-500.0,0.00016473,2]
[399436456,1766351442800,-180.86165166,0.00016473,2]
[399436458,1766351442810,-500.0,0.00016473,2]
[399436460,1766351442819,-164.83274193,0.00016473,2]
[399436462,1766351442828,-500.0,0.00016473,2]
[399436464,1766351442839,-207.48820699,0.00016473,2]
[399436466,1766351442849,-500.0,0.00016473,2]
[399436467,1766351442858,-565.78797354,0.00016473,2]
[399436468,1766351442867,-506.25214638,0.00016473,2]
[399436469,1766351442876,-500.0,0.00016473,2]
[399436470,1766351442886,-500.0,0.00016473,2]
[399436471,1766351442897,-500.0,0.00016473,2]
[399436472,1766351442908,-500.0,0.00016473,2]
[399436473,1766351442918,-500.0,0.00016473,2]
[399436474,1766351442928,-639.72398952,0.00016473,2]
[399436475,1766351442937,-570.29356194,0.00016473,2]
[399436476,1766351442946,-500.0,0.00016473,2]
[399436478,1766351442956,-500.0,0.00016473,2]
[399436480,1766351442965,-182.51229941,0.00016473,2]
[399436482,1766351442974,-500.0,0.00016473,2]
[399436484,1766351442983,-500.0,0.00016473,2]
[399436485,1766351442993,-500.0,0.00016473,2]
[399436486,1766351443003,-160.18477965,0.00016473,2]
[399436487,1766351443013,-530.05316157,0.00016473,2]
[399436488,1766351443024,-500.0,0.00016473,2]
[399436489,1766351443033,-500.0,0.00016473,2]
[399436490,1766351443043,-500.0,0.00016473,2]
[399436491,1766351443057,-500.0,0.00016473,2]
[399436492,1766351443066,-500.0,0.00016473,2]
[399436493,1766351443075,-500.0,0.00016473,2]
[399436494,1766351443084,-500.0,0.00016473,2]
[399436495,1766351443095,-500.0,0.00016473,2]
[399436496,1766351443105,-782.41597286,0.00016619,2]
[399436497,1766351443114,-1795.59,0.00016656,2]
[399436498,1766351443124,-3790.35999614,0.000167,2]
[399436499,1766351443134,-199.8712032,0.00016777,2]
[399436500,1766351443143,-833.7673616,0.00016889,2]
[399436501,1766351443153,-833.76736157,0.00016891,2]
[399436502,1766351443162,-833.76736157,0.00016893,2]
[399436503,1766351443172,-833.76736157,0.00016896,2]
[399436504,1766351443181,-833.76736157,0.00016898,2]
[399436505,1766351443190,-3728.0689,0.000169,2]
[399436506,1766351443200,-10000.0,0.000169,2]
[399436507,1766351443209,-782.41597286,0.000169,2]
[399436508,1766351443219,-256.2489718,0.000169,2]
[399436509,1766351443228,-178.39684581,0.000169,2]
[399436510,1766351443237,-28256.00528838,0.000169,2]
[399436511,1766351443246,-567.38782862,0.000169,2]
[399436512,1766351443255,-1533.22790124,0.000169,2]
[399436513,1766351443265,-203.57455078,0.000169,2]
[399436514,1766351443274,-833.76736157,0.000169,2]
[399436515,1766351443283,-1795.59,0.0001693,2]
[399436516,1766351443292,-3500.0,0.00016931,2]
[399436517,1766351443302,-1954.77156402,0.00016931,2]
[399436518,1766351443311,-3500.0,0.00016931,2]
[399436519,1766351443320,-150.36,0.00016945,2]
[399436520,1766351443329,-151.16864998,0.00016983,2]
[399436521,1766351443338,-151.0,0.00016983,2]
[399436522,1766351443349,-221.0,0.00016984,2]
[399436523,1766351443359,-412462.13,0.00016986,2]
[399436524,1766351443367,-151.0,0.00016989,2]
[399436525,1766351443377,-1556.03735663,0.0001699,2]
[399436526,1766351443386,-1556.03735663,0.0001699,2]
[399436527,1766351443395,-500.0,0.00016991,2]
[399436528,1766351443404,-500.0,0.00016991,2]
[399436529,1766351443414,-500.0,0.00016991,2]
[399436530,1766351443423,-500.0,0.00016991,2]
[399436531,1766351443433,-8112.0014061,0.00016992,2]
[399436532,1766351443443,-900828.240292,0.00016992,2]
[399436533,1766351443452,-1001.695375,0.00016992,2]
[399436534,1766351443461,-65586.0529556,0.00016992,2]
[399436535,1766351443471,-151.0,0.00016992,2]
[399436536,1766351443480,-151.0,0.00016992,2]
[399436537,1766351443490,-151.0,0.00016992,2]
[399436538,1766351443500,-151.0,0.00016992,2]
[399436539,1766351443509,-151.0,0.00016992,2]
[399436540,1766351443518,-151.0,0.00016992,2]
[399436541,1766351443529,-151.0,0.00016992,2]
[399436542,1766351443538,-293.018097,0.00016992,2]
[399436543,1766351443548,-293.018097,0.00016992,2]
[399436544,1766351443557,-975.876086,0.00016992,2]
[399436545,1766351443567,-293.018097,0.00016992,2]
[399436546,1766351443576,-975.876086,0.00016992,2]
[399436547,1766351443585,-293.018097,0.00016992,2]
[399436548,1766351443595,-975.876086,0.00016992,2]
[399436549,1766351443605,-975.876086,0.00016992,2]
[399436550,1766351443615,-151.0,0.00016992,2]
[399436551,1766351443624,-151.0,0.00016992,2]
[399436552,1766351443633,-151.0,0.00016992,2]
[399436553,1766351443644,-151.0,0.00016992,2]
[399436554,1766351443655,-32122.7217462,0.00016992,2]
[399436555,1766351443664,-153.350733,0.00016992,2]
[399436556,1766351443673,-151.0,0.00016992,2]
[399436557,1766351443682,-151.0,0.00016997,2]
[399436558,1766351443692,-208.04,0.00016999,2]
[399436559,1766351443701,-1101.62355977,0.00016999,5]
[399436560,1766351443710,-500.0,0.00016999,2]
[399436561,1766351443722,-500.0,0.00016999,2]
[399436562,1766351443733,-500.0,0.00016999,2]
[399436563,1766351443743,-500.0,0.00016999,2]
[399436564,1766351443753,-500.0,0.00016999,2]
[399436565,1766351443764,-500.0,0.00016999,2]
[399436566,1766351443774,-500.0,0.00016999,2]
[399436567,1766351443784,-500.0,0.00016999,2]
[399436568,1766351443793,-500.0,0.00016999,2]
[399436569,1766351443802,-500.0,0.00016999,2]
[399436570,1766351443812,-500.0,0.00016999,2]
[399436571,1766351443821,-500.0,0.00016999,2]
[399436572,1766351443832,-248.57957861,0.00016999,2]
[399436573,1766351443842,-505.3255501,0.00016999,2]
[399436574,1766351443851,-1003.1552,0.00016999,2]
[399436575,1766351443860,-500.0,0.00016999,2]
[399436576,1766351443869,-300.0,0.00016999,2]
[399436577,1766351443878,-300.0,0.00016999,2]
[399436578,1766351443888,-300.0,0.00016999,2]
[399436579,1766351443898,-666.0,0.00016999,2]
[399436580,1766351443907,-300.0,0.00016999,2]
[399436581,1766351443916,-2034045.36132199,0.00017,2]
[399436582,1766351444461,-290.80846488,0.00017,2]
[399436583,1766351444475,-371.50810026,0.00017,2]
[399436584,1766351444487,-884.84855927,0.00017,2]
[399436585,1766351444499,-322912.35115137,0.00017,2]
[399436586,1766351444511,-119451.34576497,0.00017,2]
[399436587,1766351444520,-778.11063303,0.00017,2]
[399436588,1766351444533,-296707.65690827,0.00017,2]
[399436589,1766351444545,-2877.10776756,0.00017,2]
[399436590,1766351444688,-2731.44,0.00017,2]
[399436591,1766351444701,-860.86,0.00017,2]
[399436592,1766351444713,-321.88509748,0.00017,2]
[399436593,1766351444726,-2589.34,0.00017,2]
[399436594,1766351444799,-4089.02672651,0.00017,2]
[399436596,1766351445422,-8034.96227502,0.00017,2]
[399436597,1766351445434,-1280.410927,0.00017,2]
[399436598,1766351445445,-434097.18003241,0.00017,2]
[399436599,1766351445457,-903.0,0.00017,2]
[399436600,1766351445480,-36654.01430941,0.00017,2]
[399436601,1766351445492,-684.39999965,0.00017,2]
[399436602,1766351445648,-1218.6,0.00017,2]
[399436603,1766351445660,-616.41039104,0.00017,2]
[399436604,1766351445672,-7322.33,0.00017,2]
[399436605,1766351445684,-6403.69871666,0.00017,2]
[399436606,1766351445696,-357.85910194,0.00017,2]
[399436607,1766351445712,-356.15,0.00017,2]
[399436608,1766351445724,-521.11876182,0.00017,2]
[399436609,1766351445736,-443.205,0.00017,2]
[399436610,1766351445760,-2774.50807757,0.00017,2]
[399436621,1766351488488,153.04,7.969e-05,2]
[399436622,1766351488685,153.04,9.563e-05,2]
[399436641,1766351530427,200.0,0.00035616,30]
[399436642,1766351533134,151.0,0.00035616,30]
[399436643,1766351533513,500.0,0.00035616,30]
[399436680,1766351541284,414.0,0.00035616,30]
[399436681,1766351541902,429.318,0.00035616,30]
[399436682,1766351542564,414.32590499,0.00035616,30]
[399436684,1766351547919,151.0,0.00035616,30]
[399436796,1766351827843,200.0,0.00035616,30]
[399436797,1766351832999,165.25417065,0.00035616,30]
[399436893,1766352097263,961.967,0.00035587,42]
[399436931,1766352541251,1000.0,0.00035615,30]
[399436932,1766352541525,1000.0,0.00035586,30]
[399436936,1766352631449,-271.54991355,0.00010166,2]
[399436938,1766352631460,-1251.37727158,0.00010166,2]
[399436939,1766352631472,-329.49281487,0.00010166,2]
[399436940,1766352631482,-250.0,0.00010166,2]
[399436941,1766352631491,-233.0,0.00010166,2]
[399436942,1766352631502,-3206.92,0.0001027,2]
[399436943,1766352631511,-250.0,0.00010337,2]
[399436944,1766352631521,-703.23465698,0.00010533,2]
[399436945,1766352631533,-230.13742753,0.00010533,2]
[399436946,1766352631543,-1000.0,0.00010551,2]
[399436947,1766352631556,-300.0,0.00010569,2]
[399436948,1766352631565,-468.36999732,0.00010569,2]
[399436949,1766352631576,-731.63000268,0.00010569,2]
[399436950,1766352631585,-300.0,0.00010569,2]
[399436951,1766352631594,-1200.0,0.0001057,2]
[399436952,1766352631604,-1480.86726628,0.00010571,2]
[399436953,1766352631615,-1764.06570412,0.00010571,2]
[399436954,1766352631626,-680.07227008,0.00010571,2]
[399436955,1766352631641,-296.40886238,0.00010571,2]
[399436956,1766352631652,-1426.96589714,0.00010571,2]
[399436957,1766352631661,-151.0,0.0001058,2]
[399436958,1766352631671,-150.0,0.00010582,2]
[399436959,1766352631681,-206.89412594,0.00010582,2]
[399436960,1766352631690,-407.08490153,0.00010582,2]
[399436961,1766352631699,-500.0,0.00010582,2]
[399436962,1766352631709,-282.1340919,0.00010582,2]
[399436963,1766352631718,-83.62098348,0.00010582,2]
[399436964,1766352631729,-416.37901652,0.00010582,2]
[399436965,1766352631738,-360.90260168,0.00010582,2]
[399436967,1766352631747,-1881.96423066,0.00010583,2]
[399436970,1766352631763,-2817.90653405,0.00010583,2]
[399436972,1766352631774,-1249.18479842,0.00010583,2]
[399436973,1766352631785,-37567.86714253,0.00010583,2]
[399436974,1766352631796,-1254.41808677,0.00010583,2]
[399436975,1766352631807,-277.20013625,0.00010583,2]
[399436985,1766352637597,-5823.78547292,0.00010583,2]
[399436986,1766352637609,-2833.53678,0.00010583,2]
[399436987,1766352637654,-946294.1368184,0.00010583,2]
[399436988,1766352637664,-689.39447174,0.00010683,2]
[399436989,1766352637673,-2500.0,0.00010683,2]
[399436990,1766352637682,-6032.22,0.00010777,2]
[399436991,1766352637691,-150.99,0.00010777,2]
[399436992,1766352637700,-9999.99,0.00010777,2]
[399436993,1766352637708,-289.03,0.00010777,2]
[399436994,1766352637717,-150.99,0.00010777,2]
[399436995,1766352637726,-151.0,0.00010777,2]
[399436996,1766352637735,-151.0,0.00010777,2]
[399436997,1766352637744,-151.0,0.00010777,2]
[399436998,1766352637752,-151.0,0.00010777,2]
[399436999,1766352637761,-151.0,0.00010777,2]
[399437001,1766352637770,-151.0,0.00010777,2]
[399437003,1766352637779,-151.0,0.00010777,2]
[399437004,1766352637788,-151.0,0.00010777,2]
[399437005,1766352637797,-151.0,0.00010777,2]
[399437006,1766352637805,-151.0,0.00010777,2]
[399437007,1766352637814,-151.0,0.00010777,2]
[399437008,1766352637823,-151.0,0.00010777,2]
[399437009,1766352637832,-151.0,0.00010777,2]
[399437010,1766352637840,-151.0,0.00010777,2]
[399437011,1766352637849,-151.0,0.00010777,2]
[399437012,1766352637858,-151.0,0.00010777,2]
[399437013,1766352637867,-151.0,0.00010777,2]
[399437014,1766352637876,-151.0,0.00010777,2]
[399437015,1766352637884,-151.0,0.00010777,2]
[399437016,1766352637894,-151.0,0.00010777,2]
[399437017,1766352637903,-1795.59,0.00010777,2]
[399437018,1766352637912,-13312.29,0.0001078,2]
[399437019,1766352638227,-9999.99,0.0001078,2]
[399437020,1766352638237,-9999.99,0.0001078,2]
[399437021,1766352638246,-299.99,0.0001078,2]
[399437022,1766352638255,-961.967,0.00010782,2]
[399437023,1766352638264,-360.12259176,0.00010782,2]
[399437024,1766352638274,-33494.9637,0.00010783,2]
[399437025,1766352638283,-1000.0,0.00010783,2]
[399437026,1766352638293,-7011.91,0.00010959,2]
[399437027,1766352638302,-1795.59,0.00011051,2]
[399437028,1766352638312,-29862.54378874,0.00011099,2]
[399437029,1766352638321,-23647.07950576,0.00011099,2]
[399437030,1766352638331,-968.85,0.00011149,2]
[399437031,1766352638341,-153.04,0.00011157,2]
[399437032,1766352638350,-150.0,0.00011168,2]
[399437033,1766352638358,-195.0,0.00011183,2]
[399437034,1766352638368,-300.0,0.00011183,2]
[399437035,1766352638377,-250.0,0.00011183,2]
[399437036,1766352638387,-291.33,0.00011233,2]
[399437037,1766352638396,-23647.07950569,0.0001124,2]
[399437038,1766352638405,-300.0,0.00011297,2]
[399437039,1766352638414,-195.0,0.00011297,2]
[399437040,1766352638423,-1795.59,0.00011325,2]
[399437041,1766352638433,-1962.83301401,0.00011364,2]
[399437042,1766352638442,-29862.54378872,0.00011374,2]
[399437043,1766352638451,-1795.59,0.00011599,2]
[399437044,1766352638461,-166.67,0.000116,2]
[399437045,1766352638471,-300.0,0.00011606,2]
[399437046,1766352638481,-300.0,0.00011606,2]
[399437047,1766352638490,-255.0,0.00011609,2]
[399437048,1766352638500,-420.0,0.00011619,2]
[399437049,1766352638510,-300.0,0.00011619,2]
[399437050,1766352638520,-1680.0,0.00011626,2]
[399437051,1766352638529,-1000.0,0.00011869,2]
[399437052,1766352638539,-1795.59,0.00011873,2]
[399437053,1766352638549,-23647.07950569,0.00011948,2]
[399437054,1766352638561,-29862.54378872,0.00012065,2]
[399437055,1766352638570,-933.37208449,0.00012066,2]
[399437056,1766352638579,-1795.59,0.00012147,2]
[399437057,1766352638591,-1795.59,0.00012421,2]
[399437058,1766352638600,-166.67,0.00012557,2]
[399437059,1766352638610,-23647.07950569,0.00012655,2]
[399437060,1766352638619,-1795.59,0.00012695,2]
[399437061,1766352638630,-433.0,0.0001273,2]
[399437062,1766352638640,-153.04,0.0001275,2]
[399437063,1766352638649,-29862.54378872,0.00012755,2]
[399437064,1766352638658,-2351.0,0.00012788,2]
[399437065,1766352638667,-1795.59,0.00012968,2]
[399437066,1766352638676,-188.04,0.00013173,2]
[399437067,1766352638685,-1000.0,0.00013188,2]